[Event "FIDE World Senior-50 CC 2023"]
[Site "Terrasini"]
[Date "2023.11.03"]
[Round "9.11"]
[White "Boulard, Eric"]
[Black "Mrva, Martin"]
[Result "0-1"]
[ECO "A16"]
[WhiteElo "2181"]
[BlackElo "2366"]
[Annotator "RC"]
[PlyCount "84"]
[EventDate "2023.10.22"]
[EventType "swiss"]
[EventCountry "ITA"]
[SourceTitle "playchess.com"]
[Source "ChessBase"]
[SourceQuality "1"]
[TimeControl "40/5400+30:1800+30"]

1. c4 {[%emt 0:00:04]} Nf6 {[%emt 0:06:49]} 2. Nc3 {[%emt 0:00:14]} d5 {[%emt 0:00:19]} 3. cxd5 {[%emt 0:00:45]} Nxd5 {[%emt 0:02:37]} 4. g3 {[%emt 0:01:07]} Nxc3 {[%emt 0:10:09]} 5. bxc3 {[%emt 0:00:07]} Bd7 {[%emt 0:00:20]} 6. Bg2 {[%emt 0:00:33]} Bc6 {[%emt 0:00:36]} 7. Nf3 {[%emt 0:00:31]} e6 {[%emt 0:02:49]} 8. O-O {[%emt 0:00:27]} Be7 {[%emt 0:00:15]} 9. Re1 {[%emt 0:12:30]} Nd7 {[%emt 0:11:16]} 10. e4 {[%emt 0:01:36]} Bb5 {[%emt 0:06:29]} 11. d4 {[%emt 0:04:52]} O-O {[%emt 0:01:00]} 12. Be3 {[%emt 0:23:36]} c5 {[%emt 0:00:39]} 13. Nd2 {[%emt 0:01:18]} e5 {[%emt 0:06:15]} 14. f4 {[%emt 0:17:54]} exf4 {[%emt 0:13:31]} 15. Bxf4 {[%emt 0:01:22]} Qa5 {[%emt 0:00:21]} 16. Qf3 {[%emt 0:14:57]} cxd4 {[%emt 0:07:55]} 17. cxd4 {[%emt 0:00:12]} Bb4 {[%emt 0:00:55]} 18. Nb3 {[%emt 0:00:11]} Qb6 {[%emt 0:03:59]} 19. Red1 {[%emt 0:01:42]} Rac8 {[%emt 0:02:50]} 20. Rac1 {[%emt 0:04:22]} Qa6 {[%emt 0:01:12]} 21. Qf2 {[%emt 0:00:39]} Nf6 {[%emt 0:07:14]} 22. Nc5 {[%emt 0:01:40]} Bxc5 {[%emt 0:01:18]} 23. dxc5 {[%emt 0:00:24]} Bc6 {[%emt 0:01:04]} 24. Bd6 {[%emt 0:02:28]} Rfe8 {[%emt 0:00:45]} 25. Rf1 {[%emt 0:05:51]} Bxe4 {[%emt 0:01:05]} 26. Bxe4 {[%emt 0:00:15]} Rxe4 {[%emt 0:00:06]} 27. Rce1 {[%emt 0:00:15]} Rce8 {[%emt 0:00:54]} 28. Rxe4 {[%emt 0:01:45]} Rxe4 {[%emt 0:00:06]} 29. Qf5 {[%emt 0:02:01]} Qc6 {[%emt 0:01:31]} 30. Qf3 {[%emt 0:00:45]} Qd5 {[%emt 0:01:42]} 31. Qf2 {[%emt 0:00:55]} Ng4 {[%emt 0:03:26]} 32. Qf5 {[%emt 0:00:35]} Qxf5 {[%emt 0:00:09]} 33. Rxf5 {[%emt 0:00:04]} Re1+ {[%emt 0:00:14]} 34. Rf1 {[%emt 0:00:25]} Rxf1+ {[%emt 0:00:07]} 35. Kxf1 {[%emt 0:00:07]} Nxh2+ {[%emt 0:00:05]} 36. Kg2 {[%emt 0:00:25]} Ng4 {[%emt 0:00:07]} 37. Kf3 {[%emt 0:00:03]} f5 {[%emt 0:00:13]} 38. Ke2 {[%emt 0:01:14]} Kf7 {[%emt 0:00:06]} 39. Kd3 {[%emt 0:00:03]} Ke6 {[%emt 0:00:06]} 40. Kc4 {[%emt 0:00:06]} Ne5+ {[%emt 0:01:06]} 41. Kb5 {[%emt 0:30:42]} g5 {[%emt 0:30:26]} 42. Bf8 {[%emt 0:00:00]} h5 {[%emt 0:00:00]} 0-1

[Event "FIDE World Senior-50 CC 2023"]
[Site "Terrasini"]
[Date "2023.11.03"]
[Round "9.12"]
[White "Kalisky, Vladimir"]
[Black "Vinter-Schou, Uffe"]
[Result "0-1"]
[ECO "A29"]
[WhiteElo "2169"]
[BlackElo "2345"]
[Annotator "RC"]
[PlyCount "77"]
[EventDate "2023.10.22"]
[EventType "swiss"]
[EventCountry "ITA"]
[SourceTitle "playchess.com"]
[Source "ChessBase"]
[SourceQuality "1"]
[TimeControl "40/5400+30:1800+30"]

1. c4 {[%emt 0:00:05]} e5 {[%emt 0:01:49]} 2. Nc3 {[%emt 0:00:12]} Nf6 {[%emt 0:00:08]} 3. Nf3 {[%emt 0:00:14]} Nc6 {[%emt 0:00:08]} 4. g3 {[%emt 0:00:12]} d5 {[%emt 0:00:11]} 5. cxd5 {[%emt 0:00:06]} Nxd5 {[%emt 0:00:04]} 6. Bg2 {[%emt 0:00:21]} Nb6 {[%emt 0:00:10]} 7. O-O {[%emt 0:00:24]} Be7 {[%emt 0:00:07]} 8. b3 {[%emt 0:00:16]} O-O {[%emt 0:00:17]} 9. Bb2 {[%emt 0:00:04]} Be6 {[%emt 0:09:22]} 10. Rc1 {[%emt 0:00:45]} f5 {[%emt 0:04:20]} 11. d3 {[%emt 0:12:39]} Bf6 {[%emt 0:13:27]} 12. Qc2 {[%emt 0:19:43]} Qd7 {[%emt 0:03:28]} 13. Rfd1 {[%emt 0:01:36]} Rad8 {[%emt 0:07:27]} 14. Qb1 {[%emt 0:03:12]} g5 {[%emt 0:12:33]} 15. Nd2 {[%emt 0:12:56]} g4 {[%emt 0:06:45]} 16. Qa1 {[%emt 0:08:57]} Qg7 {[%emt 0:07:37]} 17. Nc4 {[%emt 0:05:54]} Nd4 {[%emt 0:00:48]} 18. Nd2 {[%emt 0:11:23]} e4 {[%emt 0:10:17]} 19. Bf1 {[%emt 0:04:51]} exd3 {[%emt 0:05:01]} 20. exd3 {[%emt 0:00:01]} Nd7 {[%emt 0:03:03]} 21. Re1 {[%emt 0:04:39]} Ne5 {[%emt 0:00:09]} 22. Kh1 {[%emt 0:00:03]} Qh6 {[%emt 0:01:56]} 23. Re3 {[%emt 0:00:54]} Nef3 {[%emt 0:05:52]} 24. Nxf3 {[%emt 0:00:08]} Nxf3 {[%emt 0:00:06]} 25. h3 {[%emt 0:00:25]} Bg5 {[%emt 0:00:37]} 26. Rce1 {[%emt 0:02:45]} Nxe1 {[%emt 0:00:54]} 27. Qxe1 {[%emt 0:00:01]} Bxe3 {[%emt 0:00:30]} 28. fxe3 {[%emt 0:00:40]} gxh3 {[%emt 0:02:35]} 29. Kh2 {[%emt 0:00:01]} Rd7 {[%emt 0:01:00]} 30. Nd1 {[%emt 0:00:49]} Kf7 {[%emt 0:02:35]} 31. Be2 {[%emt 0:00:59]} Ke8 {[%emt 0:00:11]} 32. Qa5 {[%emt 0:00:37]} a6 {[%emt 0:01:37]} 33. Qc5 {[%emt 0:00:22]} Bd5 {[%emt 0:00:46]} 34. Ba3 {[%emt 0:02:05]} Rg8 {[%emt 0:00:27]} 35. Qd4 {[%emt 0:00:45]} Qg7 {[%emt 0:01:03]} 36. Qf4 {[%emt 0:00:10]} Qg6 {[%emt 0:00:33]} 37. Nc3 {[%emt 0:01:00]} Bc6 {[%emt 0:00:18]} 38. Qh4 {[%emt 0:00:12]} Qg5 {[%emt 0:00:17]} 39. Nb1 {[%emt 0:09:34]} 0-1

[Event "FIDE World Senior-50 CC 2023"]
[Site "Terrasini"]
[Date "2023.11.03"]
[Round "9.13"]
[White "Cummings, David H."]
[Black "Plotkin, Victor"]
[Result "1-0"]
[ECO "A13"]
[WhiteElo "2325"]
[BlackElo "2229"]
[Annotator "RC"]
[PlyCount "107"]
[EventDate "2023.10.22"]
[EventType "swiss"]
[EventCountry "ITA"]
[SourceTitle "playchess.com"]
[Source "ChessBase"]
[SourceQuality "1"]
[TimeControl "40/5400+30:1800+30"]

1. Nf3 {[%emt 0:00:10]} d5 {[%emt 0:00:12]} 2. e3 {[%emt 0:00:20]} Nf6 {[%emt 0:00:30]} 3. c4 {[%emt 0:00:09]} e6 {[%emt 0:00:24]} 4. Nc3 {[%emt 0:00:27]} Be7 {[%emt 0:01:06]} 5. b3 {[%emt 0:00:31]} O-O {[%emt 0:00:27]} 6. Bb2 {[%emt 0:00:09]} c5 {[%emt 0:01:10]} 7. cxd5 {[%emt 0:00:29]} Nxd5 {[%emt 0:02:12]} 8. Qc2 {[%emt 0:02:23]} Nb4 {[%emt 0:06:18]} 9. Qb1 {[%emt 0:00:21]} Nd7 {[%emt 0:15:08]} 10. a3 {[%emt 0:03:06]} Nd5 {[%emt 0:04:20]} 11. Bd3 {[%emt 0:06:42]} h6 {[%emt 0:03:07]} 12. h4 {[%emt 0:08:09]} Nxc3 {[%emt 0:02:59]} 13. dxc3 {[%emt 0:10:35]} b6 {[%emt 0:02:30]} 14. Qc2 {[%emt 0:04:46]} Bb7 {[%emt 0:02:52]} 15. O-O-O {[%emt 0:00:54]} Qc7 {[%emt 0:00:57]} 16. Bh7+ {[%emt 0:18:07]} Kh8 {[%emt 0:00:17]} 17. Ng5 {[%emt 0:04:44]} Nf6 {[%emt 0:27:04]} 18. c4 {[%emt 0:03:58]} e5 {[%emt 0:02:24]} 19. Bf5 {[%emt 0:10:39]} Rad8 {[%emt 0:08:06]} 20. Rxd8 {[%emt 0:03:49]} Bxd8 {[%emt 0:00:06]} 21. f3 {[%emt 0:02:30]} Qe7 {[%emt 0:02:08]} 22. g4 {[%emt 0:04:42]} Bc7 {[%emt 0:01:11]} 23. Ne4 {[%emt 0:00:48]} Nxe4 {[%emt 0:04:48]} 24. Bxe4 {[%emt 0:00:09]} Bc8 {[%emt 0:00:25]} 25. g5 {[%emt 0:02:16]} h5 {[%emt 0:00:34]} 26. Rg1 {[%emt 0:02:42]} a6 {[%emt 0:02:46]} 27. Qe2 {[%emt 0:00:44]} g6 {[%emt 0:03:10]} 28. f4 {[%emt 0:01:43]} Bg4 {[%emt 0:00:40]} 29. Qc2 {[%emt 0:00:37]} Qe6 {[%emt 0:03:00]} 30. Rf1 {[%emt 0:00:33]} f5 {[%emt 0:00:47]} 31. Bd5 {[%emt 0:01:37]} Qe7 {[%emt 0:00:05]} 32. Qc3 {[%emt 0:00:36]} Re8 {[%emt 0:01:17]} 33. Bc6 {[%emt 0:00:33]} Rd8 {[%emt 0:00:07]} 34. fxe5 {[%emt 0:00:24]} Kh7 {[%emt 0:01:21]} 35. Bd5 {[%emt 0:01:04]} b5 {[%emt 0:00:01]} 36. e6 {[%emt 0:00:28]} bxc4 {[%emt 0:00:51]} 37. bxc4 {[%emt 0:00:40]} Rb8 {[%emt 0:00:47]} 38. Qf6 {[%emt 0:00:56]} Bd6 {[%emt 0:00:33]} 39. Qxe7+ {[%emt 0:00:25]} Bxe7 {[%emt 0:00:06]} 40. Bf6 {[%emt 0:00:15]} Bd6 {[%emt 0:01:24]} 41. e7 {[%emt 0:07:55]} Re8 {[%emt 0:01:46]} 42. Bc6 {[%emt 0:00:22]} Rxe7 {[%emt 0:00:10]} 43. Bxe7 {[%emt 0:00:03]} Bxe7 {[%emt 0:00:10]} 44. Bf3 {[%emt 0:06:18]} Bd6 {[%emt 0:00:42]} 45. Bxg4 {[%emt 0:00:32]} hxg4 {[%emt 0:00:29]} 46. Kd2 {[%emt 0:00:36]} Bg3 {[%emt 0:00:30]} 47. Ke2 {[%emt 0:01:41]} Kg7 {[%emt 0:00:10]} 48. Rh1 {[%emt 0:00:05]} Kf7 {[%emt 0:00:48]} 49. Kf1 {[%emt 0:00:14]} Ke6 {[%emt 0:01:08]} 50. Kg2 {[%emt 0:01:02]} Bc7 {[%emt 0:00:53]} 51. Rb1 {[%emt 0:00:45]} Ke5 {[%emt 0:00:11]} 52. Rb7 {[%emt 0:00:37]} Bd8 {[%emt 0:00:14]} 53. Rd7 {[%emt 0:01:06]} Ba5 {[%emt 0:00:29]} 54. Re7+ {[%emt 0:00:24]} 1-0

[Event "FIDE World Senior-50 CC 2023"]
[Site "Terrasini"]
[Date "2023.11.03"]
[Round "9.14"]
[White "Maier, Christian"]
[Black "Stets, Vasyl"]
[Result "0-1"]
[ECO "B51"]
[WhiteElo "2278"]
[BlackElo "2169"]
[Annotator "RC"]
[PlyCount "76"]
[EventDate "2023.10.22"]
[EventType "swiss"]
[EventCountry "ITA"]
[SourceTitle "playchess.com"]
[Source "ChessBase"]
[SourceQuality "1"]
[TimeControl "40/5400+30:1800+30"]

1. e4 {[%emt 0:08:56]} c5 {[%emt 0:00:12]} 2. Nf3 {[%emt 0:00:14]} Nc6 {[%emt 0:00:09]} 3. Bb5 {[%emt 0:00:29]} d6 {[%emt 0:00:51]} 4. O-O {[%emt 0:00:12]} Bd7 {[%emt 0:00:39]} 5. c3 {[%emt 0:00:29]} Nf6 {[%emt 0:01:10]} 6. Re1 {[%emt 0:00:10]} a6 {[%emt 0:00:28]} 7. Bxc6 {[%emt 0:01:18]} Bxc6 {[%emt 0:00:03]} 8. d4 {[%emt 0:00:07]} Bxe4 {[%emt 0:19:16]} 9. Bg5 {[%emt 0:00:25]} Bc6 {[%emt 0:01:23]} 10. Bxf6 {[%emt 0:01:52]} gxf6 {[%emt 0:00:06]} 11. d5 {[%emt 0:00:07]} Bd7 {[%emt 0:00:14]} 12. Nbd2 {[%emt 0:05:57]} e5 {[%emt 0:03:00]} 13. dxe6 {[%emt 0:01:27]} Bxe6 {[%emt 0:01:42]} 14. Qa4+ {[%emt 0:02:47]} Qd7 {[%emt 0:05:19]} 15. Qf4 {[%emt 0:00:36]} O-O-O {[%emt 0:00:42]} 16. Ne4 {[%emt 0:00:46]} Be7 {[%emt 0:07:06]} 17. b4 {[%emt 0:09:10]} Rhg8 {[%emt 0:09:07]} 18. bxc5 {[%emt 0:02:44]} dxc5 {[%emt 0:02:14]} 19. Nxf6 {[%emt 0:00:24]} Bxf6 {[%emt 0:00:09]} 20. Qxf6 {[%emt 0:00:06]} Qc6 {[%emt 0:12:30]} 21. g3 {[%emt 0:06:47]} Bd5 {[%emt 0:00:07]} 22. Qf5+ {[%emt 0:00:16]} Qd7 {[%emt 0:03:22]} 23. Nh4 {[%emt 0:05:50]} Kb8 {[%emt 0:07:38]} 24. Qf4+ {[%emt 0:01:35]} Ka8 {[%emt 0:01:33]} 25. Rad1 {[%emt 0:00:47]} Rge8 {[%emt 0:10:35]} 26. Re5 {[%emt 0:03:30]} Qc6 {[%emt 0:00:21]} 27. Rxe8 {[%emt 0:08:05]} Rxe8 {[%emt 0:03:11]} 28. c4 {[%emt 0:00:08]} Be6 {[%emt 0:00:16]} 29. Nf5 {[%emt 0:07:24]} Qa4 {[%emt 0:00:29]} 30. Rc1 {[%emt 0:00:15]} Rd8 {[%emt 0:03:08]} 31. Ne3 {[%emt 0:03:48]} Qxa2 {[%emt 0:02:36]} 32. Qh4 {[%emt 0:05:06]} Rd2 {[%emt 0:04:27]} 33. Rf1 {[%emt 0:06:37]} Ka7 {[%emt 0:00:23]} 34. Qxh7 {[%emt 0:00:27]} Bxc4 {[%emt 0:01:38]} 35. Rc1 {[%emt 0:05:48]} Be6 {[%emt 0:00:01]} 36. Qh5 {[%emt 0:01:13]} Qa3 {[%emt 0:00:45]} 37. Rb1 {[%emt 0:04:41]} Qc3 {[%emt 0:00:39]} 38. Qh7 {[%emt 0:00:43]} Qd3 {[%emt 0:00:52]} 0-1

[Event "FIDE World Senior-50 CC 2023"]
[Site "Terrasini"]
[Date "2023.11.03"]
[Round "9.15"]
[White "Prasad, Devaki V"]
[Black "Jhunjhnuwala, Krishan"]
[Result "1-0"]
[ECO "B33"]
[WhiteElo "2200"]
[BlackElo "2268"]
[Annotator "RC"]
[PlyCount "163"]
[EventDate "2023.10.22"]
[EventType "swiss"]
[EventCountry "ITA"]
[SourceTitle "playchess.com"]
[Source "ChessBase"]
[SourceQuality "1"]
[TimeControl "40/5400+30:1800+30"]

1. e4 {[%emt 0:00:06]} c5 {[%emt 0:00:04]} 2. Nf3 {[%emt 0:00:09]} Nc6 {[%emt 0:00:09]} 3. d4 {[%emt 0:00:11]} cxd4 {[%emt 0:00:19]} 4. Nxd4 {[%emt 0:00:07]} Nf6 {[%emt 0:00:28]} 5. Nc3 {[%emt 0:00:27]} e5 {[%emt 0:00:06]} 6. Ndb5 {[%emt 0:00:28]} d6 {[%emt 0:00:11]} 7. Bg5 {[%emt 0:00:14]} a6 {[%emt 0:00:14]} 8. Na3 {[%emt 0:00:11]} b5 {[%emt 0:00:13]} 9. Nab1 {[%emt 0:00:50]} Be7 {[%emt 0:02:24]} 10. Bxf6 {[%emt 0:00:25]} Bxf6 {[%emt 0:02:01]} 11. a4 {[%emt 0:00:12]} b4 {[%emt 0:03:45]} 12. Nd5 {[%emt 0:00:08]} Bg5 {[%emt 0:08:38]} 13. Bc4 {[%emt 0:00:29]} O-O {[%emt 0:01:20]} 14. O-O {[%emt 0:00:18]} Kh8 {[%emt 0:01:14]} 15. c3 {[%emt 0:06:05]} bxc3 {[%emt 0:03:42]} 16. Nbxc3 {[%emt 0:00:17]} f5 {[%emt 0:02:38]} 17. exf5 {[%emt 0:06:48]} Bxf5 {[%emt 0:01:53]} 18. Bd3 {[%emt 0:00:19]} Rb8 {[%emt 0:06:55]} 19. Bxf5 {[%emt 0:02:14]} Rxf5 {[%emt 0:00:18]} 20. Qd3 {[%emt 0:00:40]} Qf8 {[%emt 0:06:46]} 21. Qxa6 {[%emt 0:19:27]} Rxb2 {[%emt 0:03:41]} 22. f4 {[%emt 0:04:10]} Nb8 {[%emt 0:13:55]} 23. Qd3 {[%emt 0:00:21]} exf4 {[%emt 0:00:55]} 24. a5 {[%emt 0:08:18]} f3 {[%emt 0:12:01]} 25. Rxf3 {[%emt 0:09:36]} Rxf3 {[%emt 0:00:55]} 26. Qxf3 {[%emt 0:03:12]} Qxf3 {[%emt 0:05:53]} 27. gxf3 {[%emt 0:00:03]} Bh4 {[%emt 0:01:00]} 28. Ne4 {[%emt 0:05:45]} Na6 {[%emt 0:01:10]} 29. Rc1 {[%emt 0:03:34]} h6 {[%emt 0:02:12]} 30. Rc6 {[%emt 0:09:07]} Nc5 {[%emt 0:02:00]} 31. a6 {[%emt 0:05:51]} Ra2 {[%emt 0:01:29]} 32. Nb4 {[%emt 0:06:34]} Ra1+ {[%emt 0:04:16]} 33. Kg2 {[%emt 0:00:04]} Kh7 {[%emt 0:03:42]} 34. Nxd6 {[%emt 0:02:12]} Ne6 {[%emt 0:04:06]} 35. f4 {[%emt 0:04:06]} Ra3 {[%emt 0:01:15]} 36. Nd5 {[%emt 0:01:13]} Nd4 {[%emt 0:03:11]} 37. Rb6 {[%emt 0:01:24]} Ra2+ {[%emt 0:00:43]} 38. Kh3 {[%emt 0:00:09]} Bf2 {[%emt 0:00:52]} 39. Nc3 {[%emt 0:01:42]} Ra3 {[%emt 0:01:23]} 40. Kg2 {[%emt 0:00:23]} Be1 {[%emt 0:00:38]} 41. Ndb5 {[%emt 0:03:53]} Nxb5 {[%emt 0:12:32]} 42. Nxb5 {[%emt 0:00:06]} Ra2+ {[%emt 0:01:23]} 43. Kf3 {[%emt 0:00:25]} Bf2 {[%emt 0:01:19]} 44. Rc6 {[%emt 0:06:22]} Bg1 {[%emt 0:01:00]} 45. h3 {[%emt 0:00:32]} Ra5 {[%emt 0:00:51]} 46. Nd6 {[%emt 0:01:05]} Ra3+ {[%emt 0:01:28]} 47. Kg2 {[%emt 0:01:05]} Bd4 {[%emt 0:02:45]} 48. Nb5 {[%emt 0:03:48]} Ra2+ {[%emt 0:00:21]} 49. Kf3 {[%emt 0:00:07]} Bg1 {[%emt 0:00:32]} 50. Ke4 {[%emt 0:05:10]} Ra4+ {[%emt 0:00:49]} 51. Kf3 {[%emt 0:00:17]} Ra5 {[%emt 0:01:59]} 52. Nd6 {[%emt 0:00:42]} Ra3+ {[%emt 0:01:24]} 53. Kg2 {[%emt 0:00:53]} Bd4 {[%emt 0:01:55]} 54. Nc4 {[%emt 0:00:47]} Ra2+ {[%emt 0:01:08]} 55. Kf3 {[%emt 0:00:10]} Rh2 {[%emt 0:01:55]} 56. Ke4 {[%emt 0:01:02]} Bg1 {[%emt 0:00:41]} 57. Ne5 {[%emt 0:04:28]} Rxh3 {[%emt 0:01:01]} 58. Nf3 {[%emt 0:00:14]} Bf2 {[%emt 0:00:33]} 59. Rc2 {[%emt 0:01:22]} Bb6 {[%emt 0:00:38]} 60. Rb2 {[%emt 0:01:35]} Bc5 {[%emt 0:00:16]} 61. Ra2 {[%emt 0:03:33]} Ba7 {[%emt 0:00:59]} 62. Ne5 {[%emt 0:00:07]} Rc3 {[%emt 0:00:28]} 63. Kd5 {[%emt 0:00:23]} Rc7 {[%emt 0:01:16]} 64. Nc6 {[%emt 0:00:37]} Kg6 {[%emt 0:00:55]} 65. Kd6 {[%emt 0:00:42]} Rxc6+ {[%emt 0:01:32]} 66. Kxc6 {[%emt 0:00:02]} Kf5 {[%emt 0:00:12]} 67. Kb7 {[%emt 0:00:13]} Be3 {[%emt 0:00:15]} 68. Rb2 {[%emt 0:02:31]} h5 {[%emt 0:00:51]} 69. Rb6 {[%emt 0:00:25]} Bxb6 {[%emt 0:00:47]} 70. Kxb6 {[%emt 0:00:03]} Kxf4 {[%emt 0:01:09]} 71. a7 {[%emt 0:00:02]} g5 {[%emt 0:01:12]} 72. a8=Q {[%emt 0:06:00]} h4 {[%emt 0:00:24]} 73. Qg2 {[%emt 0:00:00]} g4 {[%emt 0:00:24]} 74. Qh2+ {[%emt 0:00:00]} Kg5 {[%emt 0:01:17]} 75. Kc5 {[%emt 0:00:00]} g3 {[%emt 0:00:24]} 76. Qh3 {[%emt 0:00:00]} Kf4 {[%emt 0:00:29]} 77. Qxh4+ {[%emt 0:00:00]} Kf3 {[%emt 0:00:04]} 78. Kd4 {[%emt 0:00:00]} g2 {[%emt 0:00:20]} 79. Qe1 {[%emt 0:00:00]} Kg4 {[%emt 0:00:03]} 80. Ke3 {[%emt 0:00:00]} Kh3 {[%emt 0:00:03]} 81. Kf3 {[%emt 0:00:00]} Kh2 {[%emt 0:00:12]} 82. Qg3+ {[%emt 0:00:00]} 1-0

[Event "FIDE World Senior-50 CC 2023"]
[Site "Terrasini"]
[Date "2023.11.03"]
[Round "9.16"]
[White "Mantovani, Renzo"]
[Black "Duong, Thanh Nha"]
[Result "1/2-1/2"]
[ECO "A27"]
[WhiteElo "2236"]
[BlackElo "2081"]
[Annotator "RC"]
[PlyCount "125"]
[EventDate "2023.10.22"]
[EventType "swiss"]
[EventCountry "ITA"]
[SourceTitle "playchess.com"]
[Source "ChessBase"]
[SourceQuality "1"]
[TimeControl "40/5400+30:1800+30"]

1. c4 {[%emt 0:01:09]} e5 {[%emt 0:00:02]} 2. Nc3 {[%emt 0:00:13]} Nc6 {[%emt 0:00:47]} 3. Nf3 {[%emt 0:00:32]} f5 {[%emt 0:01:15]} 4. d4 {[%emt 0:02:53]} e4 {[%emt 0:01:01]} 5. Ne5 {[%emt 0:00:49]} Bd6 {[%emt 0:07:09]} 6. Bf4 {[%emt 0:05:16]} Nf6 {[%emt 0:03:43]} 7. e3 {[%emt 0:01:10]} Qe7 {[%emt 0:04:56]} 8. Nxc6 {[%emt 0:03:00]} dxc6 {[%emt 0:00:22]} 9. Bg3 {[%emt 0:02:16]} O-O {[%emt 0:03:55]} 10. c5 {[%emt 0:03:59]} Bxg3 {[%emt 0:00:21]} 11. hxg3 {[%emt 0:00:06]} Be6 {[%emt 0:01:22]} 12. Be2 {[%emt 0:00:41]} Nd5 {[%emt 0:02:09]} 13. Rc1 {[%emt 0:02:25]} Qf7 {[%emt 0:06:18]} 14. a3 {[%emt 0:04:34]} Kh8 {[%emt 0:02:20]} 15. Nxd5 {[%emt 0:05:57]} Bxd5 {[%emt 0:04:24]} 16. Qc2 {[%emt 0:01:48]} h6 {[%emt 0:18:28]} 17. Bc4 {[%emt 0:02:12]} Rfd8 {[%emt 0:00:18]} 18. Qb3 {[%emt 0:01:50]} Rab8 {[%emt 0:00:56]} 19. Bxd5 {[%emt 0:01:23]} Rxd5 {[%emt 0:00:26]} 20. Rc4 {[%emt 0:00:53]} Qd7 {[%emt 0:02:48]} 21. Ra4 {[%emt 0:00:49]} Rd8 {[%emt 0:08:22]} 22. O-O {[%emt 0:05:27]} b6 {[%emt 0:00:09]} 23. Rxa7 {[%emt 0:28:21]} bxc5 {[%emt 0:00:09]} 24. dxc5 {[%emt 0:00:16]} Rxc5 {[%emt 0:00:11]} 25. Qa4 {[%emt 0:05:55]} Kh7 {[%emt 0:05:57]} 26. Ra8 {[%emt 0:03:06]} Rxa8 {[%emt 0:01:11]} 27. Qxa8 {[%emt 0:00:04]} Rb5 {[%emt 0:10:33]} 28. b4 {[%emt 0:02:10]} c5 {[%emt 0:00:26]} 29. bxc5 {[%emt 0:00:19]} Rxc5 {[%emt 0:00:10]} 30. g4 {[%emt 0:00:15]} Rd5 {[%emt 0:03:32]} 31. gxf5 {[%emt 0:01:32]} Qxf5 {[%emt 0:00:10]} 32. Qc6 {[%emt 0:00:50]} Rc5 {[%emt 0:00:28]} 33. Qa4 {[%emt 0:00:45]} h5 {[%emt 0:01:10]} 34. Qd4 {[%emt 0:02:09]} Rc6 {[%emt 0:00:51]} 35. f3 {[%emt 0:01:25]} exf3 {[%emt 0:04:03]} 36. Rxf3 {[%emt 0:00:13]} Qb1+ {[%emt 0:03:08]} 37. Kh2 {[%emt 0:04:02]} Rc1 {[%emt 0:01:00]} 38. Qf4 {[%emt 0:05:14]} Rh1+ {[%emt 0:00:33]} 39. Kg3 {[%emt 0:00:02]} Qg6+ {[%emt 0:03:05]} 40. Kf2 {[%emt 0:00:03]} Qc2+ {[%emt 0:00:14]} 41. Kg3 {[%emt 0:30:07]} h4+ {[%emt 0:31:16]} 42. Kg4 {[%emt 0:00:07]} Qxg2+ {[%emt 0:00:00]} 43. Kf5 {[%emt 0:00:00]} Qg6+ {[%emt 0:00:00]} 44. Ke5 {[%emt 0:00:00]} Qe8+ {[%emt 0:00:00]} 45. Kf5 {[%emt 0:00:00]} Qf7+ {[%emt 0:00:00]} 46. Ke4 {[%emt 0:00:00]} Qe6+ {[%emt 0:00:00]} 47. Qe5 {[%emt 0:00:00]} Qc4+ {[%emt 0:00:00]} 48. Kf5 {[%emt 0:00:00]} Qd3+ {[%emt 0:00:00]} 49. Kf4 {[%emt 0:00:00]} Qc4+ {[%emt 0:00:00]} 50. e4 {[%emt 0:00:00]} Qc1+ {[%emt 0:00:00]} 51. Kf5 {[%emt 0:00:00]} Rg1 {[%emt 0:00:06]} 52. Rf4 {[%emt 0:00:00]} g6+ {[%emt 0:02:21]} 53. Ke6 {[%emt 0:00:00]} Qc6+ {[%emt 0:02:43]} 54. Ke7 {[%emt 0:00:00]} Qd6+ {[%emt 0:01:00]} 55. Qxd6 {[%emt 0:00:00]} cxd6 {[%emt 0:00:01]} 56. Rxh4+ {[%emt 0:00:00]} Kg7 {[%emt 0:00:02]} 57. Kxd6 {[%emt 0:00:00]} Rd1+ {[%emt 0:00:19]} 58. Kc5 {[%emt 0:00:25]} g5 {[%emt 0:01:00]} 59. Rg4 {[%emt 0:03:01]} Kg6 {[%emt 0:00:09]} 60. a4 {[%emt 0:00:30]} Ra1 {[%emt 0:00:29]} 61. Kb5 {[%emt 0:00:28]} Kh5 {[%emt 0:00:06]} 62. Rg2 {[%emt 0:10:49]} Re1 {[%emt 0:00:06]} 63. a5 {[%emt 0:00:00]} 1/2-1/2

[Event "FIDE World Senior-50 CC 2023"]
[Site "Terrasini"]
[Date "2023.11.03"]
[Round "9.17"]
[White "Milat, Marcel"]
[Black "Nikolaidis, Konstantinos"]
[Result "0-1"]
[ECO "E17"]
[WhiteElo "2207"]
[BlackElo "2096"]
[Annotator "RC"]
[PlyCount "82"]
[EventDate "2023.10.22"]
[EventType "swiss"]
[EventCountry "ITA"]
[SourceTitle "playchess.com"]
[Source "ChessBase"]
[SourceQuality "1"]
[TimeControl "40/5400+30:1800+30"]

1. Nf3 {[%emt 0:10:33]} Nf6 {[%emt 0:01:20]} 2. c4 {[%emt 0:00:36]} e6 {[%emt 0:02:38]} 3. g3 {[%emt 0:00:21]} d5 {[%emt 0:01:03]} 4. Bg2 {[%emt 0:00:11]} Be7 {[%emt 0:01:13]} 5. O-O {[%emt 0:02:01]} O-O {[%emt 0:01:36]} 6. b3 {[%emt 0:02:13]} b6 {[%emt 0:01:30]} 7. Bb2 {[%emt 0:14:43]} Bb7 {[%emt 0:02:48]} 8. d4 {[%emt 0:03:12]} Nbd7 {[%emt 0:02:34]} 9. cxd5 {[%emt 0:01:36]} Nxd5 {[%emt 0:06:25]} 10. Nbd2 {[%emt 0:00:37]} c5 {[%emt 0:01:30]} 11. Nc4 {[%emt 0:08:02]} Rc8 {[%emt 0:05:33]} 12. e4 {[%emt 0:01:34]} N5f6 {[%emt 0:02:48]} 13. e5 {[%emt 0:00:09]} Nd5 {[%emt 0:01:08]} 14. h4 {[%emt 0:04:20]} b5 {[%emt 0:07:55]} 15. Nd6 {[%emt 0:00:12]} Bxd6 {[%emt 0:00:18]} 16. exd6 {[%emt 0:00:03]} c4 {[%emt 0:09:46]} 17. bxc4 {[%emt 0:00:43]} bxc4 {[%emt 0:01:08]} 18. Qa4 {[%emt 0:07:27]} a6 {[%emt 0:05:00]} 19. Rab1 {[%emt 0:05:57]} N7b6 {[%emt 0:02:49]} 20. Qa5 {[%emt 0:00:33]} c3 {[%emt 0:05:50]} 21. Ba3 {[%emt 0:00:09]} c2 {[%emt 0:02:30]} 22. Rb3 {[%emt 0:01:57]} Nc4 {[%emt 0:09:10]} 23. Qxd8 {[%emt 0:00:08]} Rfxd8 {[%emt 0:00:07]} 24. Bc5 {[%emt 0:00:05]} Bc6 {[%emt 0:04:06]} 25. Rc1 {[%emt 0:20:20]} Ba4 {[%emt 0:01:59]} 26. Bf1 {[%emt 0:01:27]} Bxb3 {[%emt 0:03:28]} 27. axb3 {[%emt 0:00:03]} Nxd6 {[%emt 0:01:09]} 28. Bxa6 {[%emt 0:00:11]} Rb8 {[%emt 0:06:04]} 29. Rxc2 {[%emt 0:04:41]} Rxb3 {[%emt 0:01:11]} 30. Ne5 {[%emt 0:00:05]} Nb4 {[%emt 0:02:33]} 31. Bxb4 {[%emt 0:00:32]} Rxb4 {[%emt 0:00:02]} 32. Nc6 {[%emt 0:00:35]} Rb1+ {[%emt 0:00:15]} 33. Kg2 {[%emt 0:00:05]} Ra8 {[%emt 0:00:34]} 34. Be2 {[%emt 0:00:17]} Kf8 {[%emt 0:01:59]} 35. Bf3 {[%emt 0:00:10]} Rc8 {[%emt 0:02:03]} 36. Ra2 {[%emt 0:00:12]} Rc1 {[%emt 0:01:45]} 37. Ne5 {[%emt 0:00:17]} R1c2 {[%emt 0:02:14]} 38. Ra6 {[%emt 0:00:43]} Nc4 {[%emt 0:01:40]} 39. Be4 {[%emt 0:09:13]} Rd2 {[%emt 0:01:10]} 40. Bb7 {[%emt 0:03:39]} Rc7 {[%emt 0:00:40]} 41. Ra8+ {[%emt 0:30:33]} Ke7 {[%emt 0:30:10]} 0-1